bitfinex-derivatives/quotes_ETHF0:USTF0_20250116
["timestamp","ask_amount","ask_price","bid_price","bid_amount"]
[1736999330239,3.1746,3367.1,3366.6,5.44753441]
[1736999330542,0.59409,3367.0,3366.6,5.44753441]
[1736999330742,0.59409,3367.0,3366.6,46.24753441]
[1736999330945,0.59409,3367.0,3366.6,46.84168441]
[1736999331639,0.59414,3366.7,3366.6,3.2078]
[1736999331842,3.1746,3367.1,3366.6,5.44753441]
[1736999332147,0.59409,3367.0,3366.6,6.04168441]
[1736999332342,0.59409,3367.0,3366.6,5.44753441]
[1736999332546,0.59409,3367.0,3366.6,6.04168441]
[1736999336447,3.76868,3367.1,3366.7,0.59414]
[1736999336654,0.59409,3367.0,3366.7,0.59414]
[1736999336842,3.76867,3367.1,3366.8,2.22762]
[1736999337440,3.1746,3367.1,3366.8,1.6335]
[1736999337647,0.5941,3366.9,3366.8,1.6335]
[1736999338154,0.5941,3366.9,3366.6,3.80196]
[1736999338351,1.5691,3366.8,3366.6,3.2078]
[1736999338549,0.59414,3366.7,3366.6,3.2078]
[1736999339046,2.16323,3366.8,3366.6,3.2078]
[1736999339248,1.5691,3366.8,3366.6,3.2078]
[1736999340044,1.5691,3366.8,3366.6,3.80196]
[1736999340754,1.5517,3367.1,3366.7,2.23973441]
[1736999340956,1.5691,3367.3,3367.1,0.59407]
[1736999341142,3.0911,3367.3,3367.0,2.23973441]
[1736999341350,0.59406,3367.2,3366.9,0.5941]
[1736999342354,0.59406,3367.2,3367.0,3.2078]
[1736999343048,0.59406,3367.2,3367.0,3.80188]
[1736999343356,3.0911,3367.3,3367.0,3.80188]
[1736999343654,3.68514,3367.3,3367.1,2.15056]
[1736999344151,3.68514,3367.3,3367.1,1.5565]
[1736999345051,3.0911,3367.3,3367.1,1.5565]
[1736999345352,2.1336,3367.5,3367.3,0.59403]
[1736999345546,0.594,3367.5,3367.4,3.2078]
[1736999346147,3.0735,3367.7,3367.5,0.594]
[1736999346347,1.6438,3368.0,3367.6,2.23973441]
[1736999346555,2.23771,3368.0,3367.9,3.2078]
[1736999349151,1.6438,3368.0,3367.9,3.80173]
[1736999349453,0.59393,3367.9,3367.7,2.23215]
[1736999349653,2.23772,3368.0,3367.7,2.23215]
[1736999349850,1.564,3368.1,3367.9,2.23973441]
[1736999350150,5.20981,3368.6,3368.3,0.59385]
[1736999350342,5.20981,3368.6,3368.3,3.80165]
[1736999350647,0.59382,3368.5,3368.4,1.5264]
[1736999352552,5.20982,3368.6,3368.4,1.5264]
[1736999352752,4.616,3368.6,3368.4,1.5264]
[1736999352951,0.59382,3368.5,3368.4,1.5264]
[1736999354847,4.616,3368.6,3368.4,1.5264]
[1736999355055,0.59382,3368.5,3368.4,1.5264]
[1736999355752,0.59382,3368.5,3368.3,3.2078]
[1736999355953,4.616,3368.6,3368.3,3.2078]
[1736999356150,0.59384,3368.4,3368.3,3.2078]
[1736999356451,0.59384,3368.4,3367.6,3.87493441]
[1736999356452,0.59396,3367.7,3367.6,3.87493441]
[1736999356650,0.59394,3367.9,3367.6,4.46890441]
[1736999357860,1.4846,3368.4,3367.6,4.46890441]
[1736999358056,0.59396,3367.7,3367.5,4.4388]
[1736999358266,0.59401,3367.4,3367.3,2.23973441]
[1736999358559,0.59403,3367.3,3367.2,1.231]
[1736999360553,4.7688,3367.6,3367.2,1.231]
[1736999360751,0.594,3367.5,3367.3,2.23973441]
[1736999360957,5.36278,3367.6,3367.3,2.83376441]
[1736999361159,4.7688,3367.6,3367.5,3.2078]
[1736999361662,5.36278,3367.6,3367.3,2.83375441]
[1736999362558,4.7688,3367.6,3367.3,2.83375441]
[1736999363258,0.59394,3367.9,3367.6,0.59397]
[1736999363561,0.59394,3367.9,3367.6,2.83370441]
[1736999363766,0.59394,3367.8,3367.7,1.6267]
[1736999364660,0.59394,3367.8,3367.6,2.83371441]
[1736999364861,1.5184,3367.7,3367.6,2.83371441]
[1736999366363,1.5184,3367.7,3367.5,3.2078]
[1736999366364,2.11236,3367.7,3367.5,3.80179]
[1736999366566,1.6372,3367.6,3367.5,3.80179]
[1736999367665,1.6372,3367.6,3367.5,3.2078]
[1736999368670,1.6372,3367.6,3367.5,3.8018]
[1736999369263,1.6372,3367.6,3367.5,3.2078]
[1736999369464,1.6372,3367.6,3367.5,3.8018]
[1736999370564,1.6372,3367.6,3367.5,3.2078]
[1736999370759,0.59405,3367.3,3367.1,3.2078]
[1736999370966,0.59405,3367.2,3367.1,3.2078]
[1736999371171,2.21475,3367.2,3367.1,3.2078]
[1736999372481,2.21475,3367.2,3366.6,44.27173441]
[1736999372482,0.59414,3366.7,3366.6,44.27173441]
[1736999372668,0.59414,3366.7,3366.6,43.03973441]
[1736999372970,0.59414,3366.7,3366.6,2.23973441]
[1736999374273,0.59414,3366.7,3366.5,44.0078]
[1736999374572,4.821,3366.6,3366.5,44.0078]
[1736999374969,5.41516,3366.6,3366.5,44.0078]
[1736999375170,5.41516,3366.6,3366.5,3.2078]
[1736999380675,0.59422,3366.3,3366.0,5.44753441]
[1736999380971,0.59423,3366.2,3366.0,5.44753441]
[1736999381175,0.59422,3366.3,3366.0,5.44753441]
[1736999381376,0.59423,3366.2,3366.0,5.44753441]
[1736999381574,0.59423,3366.2,3366.0,46.24753441]
[1736999381774,1.5987,3366.1,3366.0,5.44753441]
[1736999381971,1.5987,3366.1,3366.0,6.04179441]
[1736999382281,1.5987,3366.1,3366.0,5.44753441]
[1736999383380,1.5987,3366.1,3366.0,6.04179441]
[1736999383579,1.5987,3366.1,3366.0,5.44753441]
[1736999384777,2.19294,3366.1,3366.0,5.44753441]
[1736999384983,1.5987,3366.1,3366.0,3.2078]
[1736999386076,0.5943,3365.8,3365.6,3.2078]
[1736999386274,0.59431,3365.7,3365.6,3.2078]
[1736999387977,0.59431,3365.8,3365.6,3.2078]
[1736999388174,0.59431,3365.7,3365.6,3.2078]
[1736999388877,3.69517,3366.0,3365.7,0.59431]
[1736999389380,3.69517,3366.0,3365.7,2.18931]
[1736999390475,3.69517,3366.0,3365.8,0.5943]
[1736999390874,3.1009,3366.0,3365.7,1.595]
[1736999391185,3.1009,3366.0,3365.8,0.59429]
[1736999392481,3.1009,3366.0,3365.8,0.5943]
[1736999392678,3.1009,3366.0,3365.8,0.59428]
[1736999393377,3.1009,3366.0,3365.7,3.83473441]
[1736999393878,3.1009,3366.0,3365.8,0.59429]
[1736999394281,3.1009,3366.0,3365.9,0.59428]
[1736999394881,1.6025,3366.0,3365.9,0.59428]
[1736999397381,0.59421,3366.3,3365.8,1.5348]
[1736999397382,2.22821,3366.3,3366.0,0.59425]
[1736999398686,2.22821,3366.3,3365.9,0.59427]
[1736999398880,2.18293,3366.2,3365.9,0.59428]
[1736999399086,1.6189,3366.1,3365.9,0.59428]
[1736999400584,1.6189,3366.1,3365.7,1.595]
[1736999400790,0.59431,3365.7,3365.6,3.2078]
[1736999400985,1.6189,3366.1,3365.6,3.2078]
[1736999401289,2.21315,3366.1,3365.7,0.59431]
[1736999401490,2.21315,3366.1,3365.7,2.16701]
[1736999401686,1.6189,3366.1,3365.7,1.5727]
[1736999402389,0.5943,3365.8,3365.7,1.5727]
[1736999402577,0.59429,3365.9,3365.7,1.5727]
[1736999402784,0.59427,3366.0,3365.7,2.16701]
[1736999402986,0.59426,3366.0,3365.7,1.5727]
[1736999403288,0.59429,3365.9,3365.7,1.5727]
[1736999405389,0.59429,3365.9,3365.6,3.80213]
[1736999407188,1.6189,3366.1,3365.6,3.2078]
[1736999407387,0.59431,3365.7,3365.6,3.2078]
[1736999407893,0.59438,3365.4,3365.2,3.2078]
[1736999408087,4.61,3365.3,3365.2,3.2078]
[1736999408594,5.20439,3365.3,3365.2,3.2078]
[1736999410681,5.20439,3365.3,3365.0,40.8]
[1736999410884,5.20439,3365.3,3364.9,2.19824]
[1736999411083,0.5944,3365.2,3364.8,1.23]
[1736999411290,4.61,3365.3,3364.7,3.80228]
[1736999411291,7.8178,3365.3,3364.7,3.2078]
[1736999411493,0.59447,3364.8,3364.7,3.2078]
[1736999412689,7.8178,3365.3,3364.7,3.2078]
[1736999413196,0.59446,3364.9,3364.7,3.2078]
[1736999413790,0.59447,3364.8,3364.7,3.2078]
[1736999414595,0.5944,3365.2,3364.4,0.59454]
[1736999414897,1.5264,3364.7,3364.4,0.59454]
[1736999415195,1.5344,3364.6,3364.5,0.59453]
[1736999415492,1.5344,3364.6,3364.3,3.2078]
[1736999415694,3.2078,3365.3,3364.4,2.23973441]
[1736999415894,4.7566,3365.2,3364.8,3.2078]
[1736999416094,0.38730232,3366.0,3365.0,2.23973441]
[1736999416295,0.59433,3365.6,3365.4,3.2078]
[1736999416495,0.59435,3365.5,3365.4,3.2078]
[1736999417091,0.59435,3365.5,3365.4,44.0078]
[1736999417295,0.59435,3365.5,3365.4,3.2078]
[1736999417601,4.7566,3365.9,3365.4,3.2078]
[1736999417804,0.59434,3365.6,3365.4,3.2078]
[1736999417990,0.59435,3365.5,3365.4,3.2078]
[1736999418600,0.59434,3365.6,3365.4,3.2078]
[1736999419696,4.7566,3365.9,3365.4,3.2078]
[1736999419905,0.59434,3365.6,3365.4,3.2078]
[1736999420401,0.5943,3365.8,3365.4,4.7833]
[1736999420601,0.59434,3365.6,3365.4,4.7833]
[1736999420790,0.59435,3365.5,3365.4,4.7833]
[1736999420997,0.59435,3365.6,3365.4,4.7833]
[1736999421903,0.59435,3365.6,3365.4,5.37767]
[1736999422104,4.7566,3365.9,3365.4,4.7833]
[1736999422303,0.59435,3365.5,3365.4,4.7833]
[1736999422505,0.59434,3365.6,3365.4,4.7833]
[1736999422705,4.7566,3365.9,3365.4,4.7833]
[1736999422903,4.7566,3365.9,3365.7,0.59431]
[1736999423203,4.7566,3365.9,3365.4,3.2078]
[1736999423406,0.59435,3365.5,3365.4,3.2078]
[1736999423906,2.23973441,3365.7,3365.0,3.2078]
[1736999424109,0.59442,3365.1,3365.0,3.2078]
[1736999425004,0.59445,3365.0,3364.8,1.5911]
[1736999425212,1.5893,3365.4,3364.8,1.5911]
[1736999425510,3.69966,3364.9,3364.8,1.5911]
[1736999426105,3.1052,3364.9,3364.6,1.23]
[1736999426309,0.59449,3364.7,3364.6,1.23]
[1736999426509,2.18378,3364.8,3364.6,1.23]
[1736999427002,2.18378,3364.8,3364.5,1.5243]
[1736999427205,0.5945,3364.7,3364.5,1.5243]
[1736999428009,0.5945,3364.7,3364.4,3.2078]
[1736999428814,1.5893,3364.8,3364.4,3.2078]
[1736999429114,0.59453,3364.5,3364.4,3.2078]
[1736999430517,0.59459,3364.2,3363.9,3.2078]
[1736999430816,0.59455,3364.4,3364.1,2.23973441]
[1736999431226,0.59455,3364.4,3364.2,1.5455]
[1736999431517,0.59455,3364.4,3364.1,2.23973441]
[1736999431518,3.2078,3364.6,3363.9,3.2078]
[1736999431710,1.5163,3364.3,3363.9,3.2078]
[1736999431916,0.59461,3364.0,3363.9,3.2078]
[1736999432612,3.2078,3364.1,3363.3,3.2078]
[1736999433006,3.2078,3364.1,3363.0,1.5455]
[1736999433209,3.2078,3363.7,3363.0,1.5455]
[1736999433512,0.59474,3363.3,3363.0,1.5455]
[1736999435716,3.0544,3363.5,3363.1,0.59477]
[1736999435717,3.64911,3363.5,3363.1,0.59477]
[1736999436313,3.0544,3363.5,3363.2,0.59475]
[1736999436516,3.0544,3363.5,3363.2,2.23973441]
[1736999437110,3.0544,3363.5,3363.1,0.59476]
[1736999437617,3.0544,3363.5,3363.0,1.5455]
[1736999437815,3.0544,3363.5,3363.2,0.59475]
[1736999438511,1.531,3363.6,3363.3,3.2078]
[1736999438707,3.1337,3364.0,3363.3,3.2078]
[1736999438913,4.648,3364.0,3363.6,0.59467]
[1736999439109,4.648,3364.0,3363.5,2.23973441]
[1736999439313,4.648,3364.0,3363.7,0.59467]
[1736999439513,3.1337,3364.0,3363.7,0.59467]
[1736999439922,3.2078,3364.1,3363.8,2.23973441]
[1736999440121,3.2078,3364.1,3363.9,0.59463]
[1736999440614,2.8374,3364.6,3363.8,2.23973441]
[1736999440916,0.59454,3364.5,3363.8,2.23973441]
[1736999441117,3.43192,3364.6,3364.1,0.59459]
[1736999441316,3.43192,3364.6,3363.9,40.8]
[1736999441317,3.43192,3364.6,3364.2,0.59458]
[1736999441819,0.59454,3364.5,3364.1,3.2078]
[1736999443015,0.59454,3364.5,3364.1,3.80239]
[1736999443217,5.44753441,3365.2,3364.1,5.44753441]
[1736999443518,0.59449,3364.7,3364.3,0.59456]
[1736999444031,0.59449,3364.7,3364.2,2.961]
[1736999444245,0.59449,3364.7,3364.4,0.59454]
[1736999445019,3.2078,3365.0,3364.2,6.1688]
[1736999445221,0.59454,3364.4,3364.2,4.8188]
[1736999445718,0.59453,3364.5,3364.2,4.8188]
[1736999445918,2.8076,3364.4,3364.2,5.41338]
[1736999446416,0.59456,3364.3,3364.2,3.2078]
[1736999446620,2.05606,3364.3,3364.2,3.2078]
[1736999450927,1.4615,3364.3,3364.2,3.2078]
[1736999451116,1.4615,3364.3,3364.2,3.80238]
[1736999451321,1.4615,3364.3,3364.2,3.2078]
[1736999451822,1.4615,3364.3,3364.2,3.80238]
[1736999452129,2.8076,3364.4,3364.2,3.80238]
[1736999452721,2.8076,3364.4,3364.3,1.2933]
[1736999453521,3.40214,3364.4,3364.3,1.2933]
[1736999454521,2.8076,3364.4,3364.2,3.2078]
[1736999454722,3.40215,3364.4,3364.2,3.2078]
[1736999455222,0.59456,3364.3,3364.2,3.2078]
[1736999455422,1.95946,3364.3,3364.2,3.2078]
[1736999456228,1.3649,3364.3,3363.8,3.2078]
[1736999456530,0.59461,3364.1,3363.8,3.2078]
[1736999456717,0.59459,3364.2,3363.8,3.80244]
[1736999456917,0.59461,3364.1,3363.9,1.4151]
[1736999457725,1.3649,3364.3,3363.9,1.4151]
[1736999457930,0.59461,3364.0,3363.9,1.4151]
[1736999458930,0.59461,3364.1,3363.9,1.4151]
[1736999459323,0.59461,3364.0,3363.9,1.4151]
[1736999460528,0.59461,3364.1,3363.9,1.4151]
[1736999460830,0.59461,3364.0,3363.9,1.4151]
[1736999461038,0.59463,3363.9,3363.8,3.2078]
[1736999462130,0.59472,3363.4,3363.3,4.4378]
[1736999462525,5.44753441,3363.7,3363.1,40.8]
[1736999462733,0.59479,3363.0,3362.9,3.2078]
[1736999463232,5.918,3363.3,3362.6,1.3545]
[1736999463536,5.918,3363.3,3362.4,3.2078]
[1736999463537,1.3455,3362.9,3362.4,3.2078]
[1736999463924,0.59487,3362.6,3362.4,3.2078]
[1736999464126,1.3455,3362.9,3362.4,3.2078]
[1736999464332,0.59485,3362.7,3362.4,3.2078]
[1736999464726,1.3455,3362.9,3362.4,3.2078]
[1736999464927,0.59483,3362.8,3362.4,3.80269]
[1736999467239,1.3455,3362.9,3362.5,0.59488]
[1736999467737,1.94031,3362.9,3362.5,0.59488]
[1736999469032,1.3455,3362.9,3362.5,0.59488]
[1736999469533,0.59483,3362.8,3362.4,3.80269]
[1736999469733,1.3455,3362.9,3362.4,3.2078]
[1736999469935,0.59488,3362.5,3362.4,3.2078]
[1736999470633,2.83461441,3362.5,3362.4,3.2078]
[1736999471040,1.3913,3362.6,3362.2,2.23973441]
[1736999471339,1.3913,3362.6,3362.3,0.59491]
[1736999472133,1.3913,3362.6,3362.2,0.59492]
[1736999472439,1.98616,3362.6,3362.2,0.59492]
[1736999475743,1.3913,3362.6,3362.0,1.3486]
[1736999475934,0.5949,3362.5,3362.1,0.59495]
[1736999476542,1.3913,3362.6,3362.0,2.5776]
[1736999476744,1.3913,3362.6,3362.3,0.5949]
[1736999477143,1.3913,3362.6,3362.0,2.5776]
[1736999477343,0.59488,3362.5,3362.2,0.59492]
[1736999478252,1.3913,3362.6,3362.1,0.59494]
[1736999478550,0.5949,3362.4,3362.1,0.59494]
[1736999478749,1.2859,3362.3,3362.1,0.59494]
[1736999479054,1.2859,3362.3,3362.1,0.59495]
[1736999479444,1.2859,3362.3,3362.2,0.59493]
[1736999484560,1.2859,3362.3,3362.0,1.3486]
[1736999484857,1.2859,3362.3,3362.1,0.59494]
[1736999485055,1.2859,3362.3,3362.2,0.59493]
[1736999490661,1.3913,3362.6,3362.4,0.59489]
[1736999491161,1.3913,3362.6,3362.2,2.23973441]
[1736999491162,1.98617,3362.6,3362.2,2.23973441]
[1736999491363,1.98617,3362.6,3362.2,0.59492]
[1736999491560,1.98617,3362.6,3362.3,0.59491]
[1736999492665,1.3913,3362.6,3362.1,3.2078]
[1736999492857,1.3913,3362.6,3362.4,0.59489]
[1736999493261,1.3913,3362.6,3362.1,3.2078]
[1736999493462,1.98617,3362.6,3362.3,0.59491]
[1736999495367,1.98617,3362.6,3362.4,3.2078]
[1736999495869,1.98617,3362.6,3362.3,0.59491]
[1736999496069,1.98617,3362.6,3362.4,3.2078]
[1736999497671,1.3913,3362.6,3362.4,3.80269]
[1736999498064,1.3913,3362.6,3362.4,3.2078]
[1736999498266,1.98616,3362.6,3362.4,3.2078]
[1736999498670,1.3913,3362.6,3362.4,3.2078]
[1736999498976,1.98618,3362.6,3362.4,3.2078]
[1736999499569,1.3913,3362.6,3362.4,3.2078]
[1736999499876,1.98616,3362.6,3362.4,3.2078]
[1736999500775,1.3913,3362.6,3362.4,3.80268]
[1736999501580,1.3913,3362.6,3362.5,0.59488]
[1736999501874,1.3913,3362.6,3362.4,3.2078]
[1736999501875,1.3913,3362.6,3362.4,3.80269]
[1736999502070,1.98616,3362.6,3362.4,3.2078]
[1736999502577,1.3913,3362.6,3362.4,3.2078]
[1736999502878,1.3913,3362.6,3362.4,3.80269]
[1736999503876,1.98617,3362.6,3362.4,3.80269]
[1736999504278,1.98617,3362.6,3362.4,3.2078]
[1736999504671,1.98617,3362.6,3362.4,3.8027]
[1736999504977,1.98617,3362.6,3362.4,3.2078]
[1736999505488,1.3913,3362.6,3362.4,3.2078]
[1736999505673,0.59488,3362.5,3362.4,3.2078]
[1736999505873,1.98617,3362.6,3362.4,3.2078]
[1736999506175,0.59488,3362.5,3362.4,3.2078]
[1736999507677,1.98617,3362.6,3362.4,3.2078]
[1736999510078,1.3913,3362.6,3362.4,3.2078]
[1736999510282,0.59488,3362.5,3362.4,3.2078]
[1736999511383,0.59488,3362.5,3362.3,0.5949]
[1736999511583,0.59488,3362.5,3362.4,3.2078]
[1736999512082,1.3913,3362.6,3362.0,3.2078]
[1736999512283,0.59495,3362.1,3362.0,3.2078]
[1736999512478,0.59495,3362.1,3361.8,3.2078]
[1736999512684,3.8675,3362.0,3361.8,3.2078]
[1736999512882,4.46247,3362.0,3361.8,3.2078]
[1736999513093,3.8675,3362.0,3361.8,3.2078]
[1736999513776,3.8675,3362.0,3361.9,0.59499]
[1736999513777,1.2972,3362.0,3361.9,0.59499]
[1736999513987,1.2972,3362.0,3361.9,2.83472441]
[1736999514185,1.2972,3362.0,3361.9,0.59499]
[1736999515077,1.2972,3362.0,3361.8,5.1402]
[1736999515880,1.2972,3362.0,3361.9,0.59499]
[1736999516985,1.2972,3362.0,3361.8,3.80279]
[1736999517482,1.2972,3362.0,3361.8,3.2078]
[1736999517684,2.552,3361.9,3361.8,3.8028]
[1736999518290,2.552,3361.9,3361.8,44.6028]
[1736999518586,1.2972,3362.0,3361.9,0.59499]
[1736999522283,1.2972,3362.0,3361.9,3.80279]
[1736999522686,1.2869,3362.7,3362.0,0.59497]
[1736999522988,3.7811,3362.7,3362.4,3.2078]
[1736999523389,3.7811,3362.7,3362.4,4.5265]
[1736999523891,3.7811,3362.7,3362.4,3.2078]
[1736999524288,0.59487,3362.6,3362.4,3.2078]
[1736999524787,0.59487,3362.6,3362.4,1.1808]
[1736999524984,5.44753441,3362.5,3361.7,7.89031986]
[1736999525191,0.59499,3361.9,3361.7,3.2078]
[1736999525392,1.2695,3361.8,3361.7,3.2078]
[1736999526704,1.2695,3361.8,3361.5,3.80285]
[1736999526901,1.2695,3361.8,3361.5,4.86530983]
[1736999527301,1.2695,3361.8,3361.5,3.80285]
[1736999527902,1.2695,3361.8,3361.5,0.59505]
[1736999528097,1.2203,3361.7,3361.5,0.59505]
[1736999529407,1.2203,3361.7,3361.2,2.47622551]
[1736999529607,1.2203,3361.7,3361.5,0.59504]
[1736999530106,1.2203,3361.7,3361.6,0.59504]
[1736999530303,3.2078,3362.1,3361.6,2.6535]
[1736999530498,5.8114,3362.1,3361.7,0.59502]
[1736999530702,5.8114,3362.1,3361.9,0.59498]
[1736999531103,3.2078,3362.5,3362.3,0.59491]
[1736999531308,1.285,3362.5,3362.3,0.5949]
[1736999531802,1.285,3362.5,3362.1,6.76765772]
[1736999531803,3.2078,3362.9,3362.4,2.24435772]
[1736999532304,3.2078,3362.9,3362.1,3.2078]
[1736999532501,0.59484,3362.8,3362.4,0.5949]
[1736999533504,0.59485,3362.7,3362.3,0.59491]
[1736999533706,0.59487,3362.6,3362.2,1.91042]
[1736999533904,2.6105,3362.5,3362.2,0.59492]
[1736999534099,2.6105,3362.5,3362.0,0.59496]
[1736999534100,3.2078,3362.3,3362.0,0.59496]
[1736999534305,3.80272,3362.3,3361.9,4.06733772]
[1736999534603,0.59492,3362.3,3361.9,1.82298]
[1736999534802,4.55509,3362.5,3362.1,0.59494]
[1736999535706,3.9602,3362.5,3362.2,0.59492]
[1736999535908,4.55508,3362.5,3362.0,2.5271]
[1736999536109,4.55508,3362.5,3362.1,0.59494]
[1736999536305,3.9602,3362.5,3362.2,0.59492]
[1736999536503,3.9602,3362.5,3362.4,0.5949]
[1736999537509,3.9602,3362.5,3362.3,0.59491]
[1736999539410,3.9602,3362.5,3362.0,2.5271]
[1736999539715,3.9602,3362.5,3362.1,0.59494]
[1736999540309,0.59492,3362.3,3361.9,7.27513772]
[1736999540615,0.59492,3362.3,3361.9,1.228]
[1736999540616,3.2078,3362.3,3361.9,1.228]
[1736999540810,0.59499,3361.9,3361.7,1.228]
[1736999541114,4.3312,3361.8,3361.5,3.2078]
[1736999541714,4.3312,3361.8,3361.4,0.59507]
[1736999542318,3.7362,3361.8,3361.3,2.24435772]
[1736999542520,0.59503,3361.7,3361.3,0.59509]
[1736999542712,4.33121,3361.8,3361.3,0.59509]
[1736999543111,0.59503,3361.7,3361.3,0.59509]
[1736999543421,3.7362,3361.8,3361.0,7.01301988]
[1736999543719,3.7362,3361.8,3361.2,1.8231]
[1736999543720,0.59505,3361.6,3361.2,1.8231]
[1736999544312,3.2078,3361.7,3361.2,1.228]
[1736999544817,3.2078,3362.1,3362.0,0.59497]
[1736999545217,3.7237,3362.5,3362.0,1.228]
[1736999545420,3.7237,3362.5,3362.2,0.59492]
[1736999545715,3.7237,3362.5,3362.1,40.8]
[1736999545913,3.7237,3362.5,3362.3,0.59491]
[1736999546323,2.4652,3362.5,3362.4,0.5949]
[1736999546818,2.4652,3362.5,3362.3,0.59491]
[1736999547418,2.4652,3362.5,3362.2,1.83002]
[1736999547622,2.4652,3362.5,3362.3,0.59491]
[1736999549414,2.4652,3362.5,3362.2,1.2351]
[1736999549724,2.4652,3362.5,3362.3,0.5949]
[1736999551518,2.4652,3362.5,3362.2,1.83003]
[1736999553519,2.4652,3362.5,3362.2,1.2351]
[1736999553720,2.4652,3362.5,3362.3,0.59491]
[1736999553920,2.4652,3362.5,3362.0,1.228]
[1736999554122,2.4652,3362.5,3362.1,0.59494]
[1736999554319,2.4652,3362.5,3362.0,1.228]
[1736999554320,0.5949,3362.4,3362.0,1.82296]
[1736999554729,1.3342,3362.3,3362.0,1.82296]
[1736999555230,1.3342,3362.3,3362.1,0.59494]
[1736999555526,1.3342,3362.3,3362.2,0.59493]
[1736999556026,1.2318,3362.5,3362.4,0.5949]
[1736999556219,3.157,3363.0,3362.3,2.4941]
[1736999556615,3.157,3363.0,3362.6,0.59486]
[1736999557430,3.157,3363.0,3362.3,2.4941]
[1736999557632,3.157,3363.0,3362.6,0.59485]
[1736999557833,2.5622,3363.0,3362.6,0.59485]
[1736999558026,0.59482,3362.9,3362.6,0.59485]
[1736999558428,2.5622,3363.0,3362.3,2.4941]
[1736999558729,3.157,3363.0,3362.7,0.59484]
[1736999559533,3.157,3363.0,3362.3,2.4941]
[1736999559737,0.59482,3362.9,3362.7,0.59484]
[1736999560235,2.5622,3363.0,3362.2,2.24435772]
[1736999560439,0.59487,3362.6,3362.4,0.59489]
[1736999560630,2.5622,3363.0,3362.4,0.59489]
[1736999560832,2.5622,3363.0,3362.2,2.24435772]
[1736999561134,0.59484,3362.8,3362.5,0.59487]
[1736999562240,2.5622,3363.0,3362.2,2.24435772]
[1736999562439,0.59484,3362.8,3362.2,2.24435772]
[1736999562636,0.59484,3362.8,3362.5,0.59487]
[1736999562943,0.59485,3362.7,3362.5,0.59487]
[1736999563933,2.5622,3363.0,3362.2,2.24435772]
[1736999564133,0.59484,3362.8,3362.2,2.24435772]
[1736999564738,0.59484,3362.8,3362.5,0.59487]
[1736999565736,2.5622,3363.0,3362.5,2.24435772]
[1736999565737,1.3342,3363.0,3362.5,2.24435772]
[1736999565941,3.2078,3363.2,3363.1,0.59477]
[1736999566337,3.2078,3363.2,3363.1,41.39477]
[1736999566542,3.2078,3363.2,3363.1,42.62287]
[1736999566742,3.09879,3363.6,3363.3,0.59474]
[1736999567242,3.09879,3363.6,3363.2,1.2847]
[1736999567434,3.09879,3363.6,3363.2,1.87945]
[1736999568143,2.5041,3363.6,3363.2,1.2847]
[1736999568345,1.2426,3363.6,3363.2,3.52905772]
[1736999568547,1.2426,3363.6,3363.4,0.59471]
[1736999568945,1.2426,3363.6,3363.2,3.52905772]
[1736999569138,1.2426,3363.6,3363.4,0.59472]
[1736999570847,1.2426,3363.6,3363.2,3.52905772]
[1736999571047,1.84276,3363.8,3363.2,3.52905772]
[1736999571248,3.08996,3363.8,3363.2,3.52905772]
[1736999571447,3.08996,3363.8,3363.3,40.8]
[1736999571648,3.08996,3363.8,3363.4,0.59472]
[1736999571853,2.4953,3363.8,3363.5,0.59469]
[1736999572343,3.08995,3363.8,3363.5,0.59469]
[1736999572645,2.4953,3363.8,3363.2,3.52905772]
[1736999572846,2.4953,3363.8,3363.3,40.8]
[1736999573046,2.4953,3363.8,3363.6,0.59468]
[1736999573948,2.4953,3363.8,3363.5,0.5947]
[1736999574143,2.4953,3363.8,3363.6,0.59468]
[1736999574349,4.5323,3363.9,3363.7,0.59465]
[1736999574542,3.2078,3363.9,3363.8,4.07620772]
[1736999574742,3.2078,3363.9,3363.8,5.30320772]
[1736999576453,1.2763,3364.2,3364.1,0.5946]
[1736999577148,1.2763,3364.2,3363.9,1.2502]
[1736999577850,1.2763,3364.2,3363.9,1.84482]
[1736999578251,1.2763,3364.2,3364.0,1.227]
[1736999579147,1.2763,3364.2,3364.0,1.8216]
[1736999579345,1.2763,3364.2,3364.1,0.5946]
[1736999580655,1.2763,3364.2,3364.0,1.82161]
[1736999580859,1.2763,3364.2,3364.1,0.5946]
[1736999582446,5.7407,3364.6,3364.1,2.24435772]
[1736999582652,2.5329,3364.6,3364.5,0.59453]
[1736999582960,1.1829,3365.0,3364.4,2.24435772]
[1736999583253,1.1829,3365.0,3364.9,2.83881772]
[1736999583553,3.2078,3365.1,3365.0,0.59444]
[1736999583948,3.2078,3365.1,3364.9,1.226]
[1736999584345,3.2078,3365.1,3364.3,3.2078]
[1736999584346,1.1829,3365.0,3364.3,3.2078]
[1736999584553,0.59454,3364.4,3364.3,1.226]
[1736999585347,0.59462,3364.0,3363.7,3.2078]
[1736999585553,2.569,3363.9,3363.7,3.2078]
[1736999585952,0.59465,3363.8,3363.7,3.2078]
[1736999586556,0.59469,3363.6,3363.5,1.226]
[1736999589362,0.5947,3363.6,3363.1,3.80256]
[1736999589552,1.2779,3363.5,3363.1,3.80256]
[1736999589852,1.87261,3363.5,3363.1,3.2078]
[1736999590056,1.2779,3363.5,3363.2,0.59474]
[1736999590860,1.2779,3363.5,3363.1,6.04692772]
[1736999591459,1.2779,3363.5,3363.1,5.45215772]